bitfinex-derivatives/quotes_SOLF0:USTF0_20260204
["timestamp","ask_amount","ask_price","bid_price","bid_amount"]
[1770217506622,77.88680533,93.093,92.961,77.84540715]
[1770217506917,77.88680533,93.166,92.991,77.84540715]
[1770217507122,77.88680533,93.118,92.993,77.84540715]
[1770217508223,77.88680533,93.113,93.005,9.6918]
[1770217508425,77.88680533,93.113,92.993,77.84540715]
[1770217508723,77.88680533,93.106,92.993,77.84540715]
[1770217509024,150.4512,93.198,92.993,77.84540715]
[1770217509025,77.88680533,93.139,92.993,77.84540715]
[1770217509622,77.88680533,93.133,93.02,77.84540715]
[1770217510230,77.88680533,93.133,93.02,87.53570715]
[1770217510422,77.88680533,93.133,93.005,185.96]
[1770217510423,77.88680533,93.133,92.991,77.84540715]
[1770217510623,9.6807,93.113,93.013,9.6909]
[1770217510823,77.88680533,93.13,93.014,77.84540715]
[1770217511126,77.88680533,93.13,93.021,77.84540715]
[1770217511326,77.88680533,93.13,93.015,185.94]
[1770217511327,77.88680533,93.188,93.051,77.84540715]
[1770217511518,77.88680533,93.188,93.054,77.84540715]
[1770217511724,77.88680533,93.216,93.127,9.6791]
[1770217511917,77.88680533,93.216,93.127,77.84540715]
[1770217512218,77.88680533,93.234,93.131,9.6787]
[1770217512526,77.88680533,93.278,93.141,77.84540715]
[1770217512727,77.88680533,93.275,93.165,9.6751]
[1770217512931,77.88680533,93.275,93.171,77.84540715]
[1770217513125,77.88680533,93.275,93.172,77.84540715]
[1770217513329,77.88680533,93.275,93.179,77.84540715]
[1770217513523,150.1438,93.389,93.179,77.84540715]
[1770217513524,77.88680533,93.304,93.179,77.84540715]
[1770217513922,424.03932666,93.394,93.234,77.84540715]
[1770217514122,424.03932666,93.394,93.261,77.84540715]
[1770217514325,424.03932666,93.394,93.251,150.3645]
[1770217514326,77.88680533,93.437,93.291,77.84540715]
[1770217514521,77.88680533,93.437,93.242,150.3791]
[1770217514522,77.88680533,93.5,93.321,77.84540715]
[1770217514728,77.88680533,93.5,93.351,77.84540715]
[1770217514925,77.88680533,93.5,93.377,77.84540715]
[1770217515425,83.36707861,93.462,93.367,186.3]
[1770217515826,83.36707861,93.462,93.351,77.84540715]
[1770217516023,83.36707861,93.462,93.339,186.52]
[1770217516331,77.88680533,93.459,93.32,77.84540715]
[1770217516523,77.88680533,93.423,93.289,77.84540715]
[1770217516728,77.88680533,93.423,93.291,77.84540715]
[1770217516931,77.88680533,93.423,93.257,77.84540715]
[1770217517129,77.88680533,93.399,93.257,77.84540715]
[1770217517331,77.88680533,93.369,93.221,77.84540715]
[1770217517631,77.88680533,93.367,93.221,77.84540715]
[1770217517832,77.88680533,93.339,93.188,77.84540715]
[1770217518033,77.88680533,93.327,93.188,77.84540715]
[1770217518332,77.88680533,93.309,93.156,77.84540715]
[1770217518531,77.88680533,93.302,93.158,9.6759]
[1770217518731,77.88680533,93.302,93.162,77.84540715]
[1770217518934,77.88680533,93.302,93.174,77.84540715]
[1770217519125,77.88680533,93.302,93.176,77.84540715]
[1770217519330,77.88680533,93.302,93.182,77.84540715]
[1770217520035,77.88680533,93.302,93.164,77.84540715]
[1770217520243,77.88680533,93.276,93.137,9.6781]
[1770217520429,77.88680533,93.276,93.131,77.84540715]
[1770217521038,77.88680533,93.249,93.117,186.92]
[1770217521240,77.88680533,93.278,93.121,77.84540715]
[1770217521533,77.88680533,93.278,93.153,77.84540715]
[1770217521940,77.88680533,93.278,93.15,21.93949878]
[1770217521941,77.88680533,93.278,93.161,77.84540715]
[1770217523041,77.88680533,93.269,93.128,77.84540715]
[1770217523334,77.88680533,93.255,93.128,77.84540715]
[1770217523636,73.56549837,93.239,93.095,77.84540715]
[1770217523834,21.93949878,93.24,93.095,77.84540715]
[1770217523835,73.56549837,93.214,93.095,77.84540715]
[1770217524036,73.56549837,93.214,93.02,150.7377]
[1770217524037,73.56549837,93.179,93.06,77.51364253]
[1770217525037,73.56549837,93.175,93.06,77.51364253]
[1770217525232,73.56549837,93.175,93.027,77.51364253]
[1770217525433,73.56549837,93.139,93.027,77.51364253]
[1770217526037,73.56549837,93.139,93.031,77.51364253]
[1770217526237,73.56549837,93.139,93.041,77.51364253]
[1770217526934,73.56549837,93.139,92.813,29.27146166]
[1770217526935,73.56549837,93.139,93.011,77.51364253]
[1770217527131,73.56549837,93.137,93.011,77.51364253]
[1770217527730,73.56549837,93.135,93.012,9.691]
[1770217527938,73.56549837,93.135,93.012,87.20464253]
[1770217528235,73.56549837,93.165,93.012,77.51364253]
[1770217528429,73.56549837,93.165,93.01,21.93949878]
[1770217528430,73.56549837,93.165,93.041,77.51364253]
[1770217528836,73.56549837,93.195,93.071,77.51364253]
[1770217529541,73.56549837,93.192,93.071,77.51364253]
[1770217529942,73.56549837,93.183,93.071,77.51364253]
[1770217530337,73.56549837,93.183,93.04,21.93949878]
[1770217530538,150.4677,93.188,92.973,150.8146]
[1770217530539,83.24289837,93.145,93.016,9.6907]
[1770217530739,83.24289837,93.145,93.01,209.23949878]
[1770217530740,83.24289837,93.145,93.017,77.51364253]
[1770217530942,73.56549837,93.145,93.036,9.6886]
[1770217531144,73.56549837,93.145,93.036,77.51364253]
[1770217532146,83.24299837,93.143,93.036,77.51364253]
[1770217532936,73.56549837,93.128,93.036,77.51364253]
[1770217533140,73.56549837,93.128,93.007,77.51364253]
[1770217533345,73.56549837,93.128,92.949,150.8528]
[1770217533346,73.56549837,93.119,92.948,77.51364253]
[1770217533538,73.56549837,93.119,92.951,77.51364253]
[1770217533747,150.5613,93.13,92.953,77.51364253]
[1770217533748,73.56549837,93.096,92.953,77.51364253]
[1770217533940,73.56549837,93.096,92.95,21.93949878]
[1770217533941,73.56549837,93.096,92.964,77.51364253]
[1770217534137,83.24799837,93.096,92.964,77.51364253]
[1770217534337,73.56549837,93.096,92.966,9.6958]
[1770217534541,73.56549837,93.096,92.9,150.9324]
[1770217534542,73.56549837,93.089,92.938,77.51364253]
[1770217534755,73.56549837,93.089,92.892,150.946]
[1770217534756,73.56549837,93.062,92.951,77.51364253]
[1770217534942,73.56549837,93.119,92.984,77.51364253]
[1770217535346,73.56549837,93.089,92.951,77.51364253]
[1770217535845,83.25289837,93.048,92.951,77.51364253]
[1770217536044,73.56549837,93.048,92.951,87.21114253]
[1770217537043,73.56549837,93.089,92.951,87.21114253]
[1770217537243,73.56549837,93.089,92.93,27.93949878]
[1770217537244,73.56549837,93.08,92.969,77.51364253]
[1770217537853,9.6873,93.049,92.969,77.51364253]
[1770217538050,73.56549837,93.08,92.969,77.51364253]
[1770217538446,73.56549837,93.08,92.973,77.51364253]
[1770217538843,73.56549837,93.078,92.973,77.51364253]
[1770217539642,73.56549837,93.076,92.973,77.51364253]
[1770217540142,73.56549837,93.076,92.99,9.6934]
[1770217540346,73.56549837,93.076,92.973,77.51364253]
[1770217540650,221.58,93.134,92.991,77.51364253]
[1770217540651,83.24719837,93.103,92.991,77.51364253]
[1770217540846,73.56549837,93.103,92.991,77.51364253]
[1770217542258,73.56549837,93.103,93.008,9.6914]
[1770217542453,73.56549837,93.103,92.968,187.74]
[1770217542655,73.56549837,93.079,92.931,77.51364253]
[1770217543065,73.56549837,93.065,92.966,9.6959]
[1770217543357,73.56549837,93.065,92.957,77.51364253]
[1770217543552,32.35,93.087,92.957,77.51364253]
[1770217543553,73.56549837,93.063,92.957,77.51364253]
[1770217544152,73.56549837,93.057,92.957,77.51364253]
[1770217544354,73.56549837,93.057,92.929,77.51364253]
[1770217544555,73.56549837,93.049,92.929,77.51364253]
[1770217544758,73.56549837,93.023,92.929,77.51364253]
[1770217545055,73.56549837,93.023,92.88,21.93949878]
[1770217545056,73.56549837,93.023,92.902,77.51364253]
[1770217545255,83.25549837,93.023,92.925,9.7002]
[1770217545455,83.25549837,93.023,92.902,77.51364253]
[1770217545456,73.56549837,93.023,92.902,77.51364253]
[1770217545653,73.56549837,93.019,92.902,77.51364253]
[1770217545852,73.56549837,92.984,92.874,77.51364253]
[1770217546353,73.56549837,92.984,92.901,9.7026]
[1770217546663,73.56549837,92.984,92.874,77.51364253]
[1770217546664,73.56549837,93.017,92.874,77.51364253]
[1770217546953,73.56549837,93.017,92.856,151.0033]
[1770217546954,73.56549837,93.017,92.926,87.21364253]
[1770217547159,73.56549837,93.045,92.926,77.51364253]
[1770217547360,73.56549837,93.019,92.926,77.51364253]
[1770217548251,73.56549837,93.019,92.9,21.93949878]
[1770217548449,73.56549837,93.019,92.925,77.51364253]
[1770217548650,73.56549837,93.059,92.925,77.51364253]
[1770217549055,9.6902,93.021,92.925,87.21374253]
[1770217549362,73.56549837,93.021,92.925,77.51364253]
[1770217549763,9.6903,93.02,92.925,77.51364253]
[1770217549958,73.56549837,93.02,92.925,77.51364253]
[1770217550158,9.693,92.995,92.925,77.51364253]
[1770217550459,73.56549837,93.02,92.905,77.51364253]
[1770217550656,9.6943,92.982,92.905,77.51364253]
[1770217550854,9.6943,92.982,92.88,9.7048]
[1770217551049,9.6943,92.982,92.881,77.51364253]
[1770217551050,73.56549837,92.982,92.881,77.51364253]
[1770217551259,9.6918,93.006,92.894,77.51364253]
[1770217551558,73.56549837,93.011,92.894,77.51364253]
[1770217551951,73.56549837,93.011,92.86,188.1]
[1770217551952,73.56549837,93.058,92.931,77.51364253]
[1770217552356,73.56549837,93.013,92.901,77.51364253]
[1770217552860,221.58,93.029,92.87,77.51364253]
[1770217552861,9.6959,92.966,92.87,77.51364253]
[1770217553065,73.56549837,92.974,92.87,77.51364253]
[1770217553463,73.56549837,92.971,92.858,9.7071]
[1770217553659,73.56549837,92.971,92.841,77.51364253]
[1770217554055,150.72,93.032,92.83,21.93949878]
[1770217554056,76.94319975,92.969,92.857,75.41749001]
[1770217554459,9.6929,92.996,92.861,75.41749001]
[1770217554660,76.94319975,92.995,92.861,75.41749001]
[1770217555159,76.94319975,92.995,92.886,75.41749001]
[1770217555864,76.94319975,92.995,92.893,75.41749001]
[1770217556453,76.94319975,92.995,92.895,75.41749001]
[1770217556654,32.94774279,93.04,92.895,75.41749001]
[1770217556655,76.94319975,93.023,92.895,75.41749001]
[1770217556863,76.94319975,93.023,92.911,75.41749001]
[1770217557659,86.23967147,93.004,92.911,75.41749001]
[1770217558163,76.54767147,93.004,92.911,75.41749001]
[1770217558358,76.54767147,93.004,92.882,74.770475]
[1770217558757,76.54767147,93.004,92.911,74.770475]
[1770217559467,76.54767147,92.995,92.894,9.7034]
[1770217559761,76.54767147,92.995,92.881,74.770475]
[1770217560464,76.54767147,92.979,92.887,9.7041]
[1770217560764,76.54767147,93.029,92.881,74.770475]
[1770217560966,150.6618,93.068,92.916,74.770475]
[1770217560967,76.54767147,93.021,92.916,74.770475]
[1770217561656,76.54767147,93.021,92.926,9.7]
[1770217562161,9.6918,93.007,92.916,74.770475]
[1770217562355,86.23947147,93.007,92.916,74.770475]
[1770217562561,76.54767147,93.007,92.916,74.770475]
[1770217562762,76.54767147,93.049,92.916,74.770475]
[1770217562957,76.54767147,93.049,92.941,74.770475]
[1770217563157,150.5503,93.137,92.94,32.94774279]
[1770217563158,9.6849,93.073,92.985,9.6939]
[1770217563363,76.54767147,93.077,92.976,74.770475]
[1770217563567,76.54767147,93.077,92.949,74.770475]
[1770217564066,76.54767147,93.075,92.96,74.770475]
[1770217564670,76.54767147,93.075,92.859,150.9995]
[1770217564671,76.54767147,93.031,92.926,74.770475]
[1770217564964,76.54767147,93.031,92.828,151.0491]
[1770217564965,76.54767147,93.002,92.9,74.770475]
[1770217565264,76.54767147,92.986,92.873,74.770475]
[1770217565563,76.54767147,92.953,92.85,107.71821779]
[1770217565864,221.18,93.016,92.85,107.71821779]
[1770217565865,76.54767147,93.001,92.851,74.770475]
[1770217566064,221.18,93.016,92.766,151.15]
[1770217566065,76.54767147,92.934,92.82,74.770475]
[1770217566274,32.94774279,92.96,92.82,74.770475]
[1770217566275,76.54767147,92.93,92.82,74.770475]
[1770217566463,76.54767147,92.92,92.82,74.770475]
[1770217566672,76.54767147,92.942,92.821,74.770475]
[1770217567166,76.54767147,92.94,92.843,9.7087]
[1770217567472,76.54767147,92.94,92.844,74.770475]
[1770217568665,76.54767147,92.934,92.823,9.7108]
[1770217568873,76.54767147,92.924,92.816,74.770475]
[1770217569068,76.54767147,92.922,92.816,74.770475]
[1770217569262,76.54767147,92.917,92.816,74.770475]
[1770217569665,76.54767147,92.913,92.816,74.770475]
[1770217569868,76.54767147,92.913,92.819,9.7112]
[1770217570067,76.54767147,92.913,92.816,74.770475]
[1770217570471,9.7037,92.892,92.816,74.770475]
[1770217570979,76.54767147,92.913,92.728,74.770475]
[1770217570980,76.54767147,92.844,92.728,74.770475]
[1770217571480,76.54767147,92.844,92.732,74.770475]
[1770217571668,151.0396,92.835,92.703,74.770475]
[1770217571869,76.54767147,92.829,92.703,74.770475]
[1770217572076,86.26517147,92.76,92.672,74.770475]
[1770217572273,76.54767147,92.76,92.672,74.770475]
[1770217572471,76.54767147,92.825,92.706,74.770475]
[1770217573280,76.54767147,92.818,92.675,74.770475]
[1770217573783,76.54767147,92.765,92.675,74.770475]
[1770217574577,9.714,92.794,92.68,9.7258]
[1770217574779,76.54767147,92.784,92.653,74.770475]
[1770217574974,151.1217,92.785,92.61,32.94774279]
[1770217574975,76.54767147,92.778,92.625,74.770475]
[1770217575174,76.54767147,92.766,92.63,74.770475]
[1770217575478,76.54767147,92.766,92.641,74.770475]
[1770217575677,76.54767147,92.747,92.641,74.770475]
[1770217576178,76.54767147,92.728,92.595,74.770475]
[1770217576487,32.94774279,92.71,92.566,74.770475]
[1770217576686,76.54767147,92.671,92.566,74.770475]
[1770217576982,76.54767147,92.671,92.538,74.770475]
[1770217577174,76.54767147,92.619,92.491,74.770475]
[1770217577379,76.54767147,92.669,92.521,74.770475]
[1770217577578,221.26,92.732,92.551,74.770475]
[1770217577579,76.54767147,92.699,92.551,74.770475]
[1770217577783,76.54767147,92.699,92.593,74.770475]
[1770217578174,76.54767147,92.696,92.593,74.770475]
[1770217578587,76.54767147,92.731,92.594,189.24]
[1770217578780,32.94774279,92.75,92.611,74.770475]
[1770217578781,76.54767147,92.729,92.611,74.770475]
[1770217579782,9.7228,92.71,92.611,74.770475]
[1770217580084,76.54767147,92.71,92.581,74.770475]
[1770217580283,76.54767147,92.684,92.553,74.770475]
[1770217581090,76.54767147,92.712,92.581,74.770475]
[1770217581286,76.54767147,92.712,92.58,32.94774279]
[1770217581287,76.54767147,92.709,92.595,74.770475]
[1770217581889,76.54767147,92.69,92.595,74.770475]
[1770217582185,76.54767147,92.69,92.567,74.770475]
[1770217582593,76.54767147,92.673,92.567,74.770475]
[1770217582783,76.54767147,92.719,92.581,74.770475]
[1770217582984,423.92321626,92.738,92.619,74.770475]
[1770217583191,76.54767147,92.737,92.619,74.770475]
[1770217583585,76.54767147,92.737,92.623,74.770475]
[1770217584191,86.51726516,92.721,92.623,74.770475]
[1770217584392,76.79566516,92.721,92.591,75.17316878]
[1770217584692,76.79566516,92.694,92.563,75.17316878]
[1770217585083,76.79566516,92.694,92.566,75.17316878]
[1770217585691,76.79566516,92.694,92.582,84.90926878]
[1770217585998,76.79566516,92.694,92.582,75.17316878]
[1770217586183,76.79566516,92.724,92.582,75.17316878]
[1770217586385,76.79566516,92.724,92.591,75.17316878]
[1770217586791,76.79566516,92.724,92.613,75.17316878]
[1770217588291,423.92321626,92.738,92.615,75.17316878]
[1770217588891,423.92321626,92.738,92.635,75.17316878]
[1770217589191,76.79566516,92.737,92.635,75.17316878]
[1770217589392,86.51696516,92.724,92.61,32.94774279]
[1770217589596,86.51696516,92.724,92.611,75.17316878]
[1770217589793,76.79566516,92.71,92.611,75.17316878]
[1770217591291,76.79566516,92.708,92.611,75.17316878]
[1770217591488,76.79566516,92.708,92.583,189.86]
[1770217591686,76.79566516,92.706,92.583,189.86]
[1770217591888,76.79566516,92.69,92.584,9.7358]
[1770217592195,223.64,92.707,92.584,75.17316878]
[1770217592500,76.79566516,92.732,92.626,75.17316878]
[1770217593196,76.79566516,92.726,92.626,84.90466878]
[1770217593389,76.79566516,92.726,92.626,75.17316878]
[1770217593699,76.79566516,92.725,92.631,75.17316878]
[1770217594198,76.79566516,92.723,92.591,75.17316878]
[1770217594390,76.79566516,92.719,92.561,75.17316878]
[1770217594794,76.79566516,92.686,92.561,75.17316878]
[1770217595498,76.79566516,92.686,92.59,75.17316878]
[1770217595701,76.79566516,92.686,92.561,75.17316878]
[1770217596097,76.79566516,92.686,92.567,75.17316878]
[1770217596393,76.79566516,92.676,92.541,75.17316878]
[1770217596592,76.79566516,92.628,92.541,75.17316878]
[1770217596796,76.79566516,92.626,92.5,32.94774279]
[1770217597097,76.79566516,92.659,92.542,9.7403]
[1770217597504,76.79566516,92.659,92.56,32.94774279]
[1770217597699,76.79566516,92.659,92.565,75.17316878]
[1770217597895,76.79566516,92.659,92.531,75.17316878]
[1770217598096,76.79566516,92.631,92.531,75.17316878]
[1770217598403,76.79566516,92.657,92.531,75.17316878]
[1770217598795,76.79566516,92.657,92.558,75.17316878]
[1770217599392,9.7272,92.667,92.572,84.91026878]
[1770217599595,76.79566516,92.683,92.572,75.17316878]
[1770217599794,9.7284,92.656,92.572,75.17316878]
[1770217599997,76.79566516,92.683,92.572,75.17316878]
[1770217600394,9.7295,92.646,92.572,75.17316878]
[1770217600796,76.79566516,92.657,92.572,75.17316878]
[1770217600998,76.79566516,92.685,92.572,75.17316878]
[1770217601799,76.79566516,92.685,92.598,75.17316878]
[1770217601999,76.79566516,92.711,92.598,75.17316878]
[1770217602201,76.79566516,92.711,92.607,75.17316878]
[1770217602808,423.92321626,92.738,92.609,75.17316878]
[1770217603004,76.79566516,92.737,92.609,75.17316878]
[1770217603501,76.79566516,92.737,92.611,75.17316878]
[1770217603906,86.51566516,92.737,92.646,9.7294]
[1770217604095,86.51566516,92.737,92.64,6.0]
[1770217604299,86.51566516,92.737,92.641,75.17316878]
[1770217604499,86.51566516,92.737,92.64,6.0]
[1770217604500,76.79566516,92.737,92.645,75.17316878]
[1770217604800,76.79566516,92.764,92.661,75.17316878]
[1770217605204,76.79566516,92.801,92.671,75.17316878]
[1770217605798,9.7178,92.757,92.671,75.17316878]
[1770217606002,76.79566516,92.774,92.671,75.17316878]
[1770217606398,150.9933,92.864,92.66,32.94774279]
[1770217606399,76.79566516,92.856,92.691,75.17316878]
[1770217606801,76.79566516,92.82,92.7,75.17316878]
[1770217607410,76.79566516,92.82,92.713,84.89546878]
[1770217607610,76.79566516,92.82,92.713,75.17316878]
[1770217607808,76.79566516,92.82,92.716,75.17316878]
[1770217608210,76.79566516,92.82,92.689,75.17316878]
[1770217608411,76.79566516,92.791,92.689,75.17316878]
[1770217608607,76.79566516,92.791,92.663,266.03316878]
[1770217608808,76.79566516,92.791,92.664,75.17316878]
[1770217609009,76.79566516,92.779,92.664,75.17316878]
[1770217609405,76.79566516,92.776,92.668,75.17316878]
[1770217609613,76.79566516,92.776,92.67,75.17316878]
[1770217610108,76.79566516,92.804,92.68,75.17316878]
[1770217610811,76.79566516,92.802,92.702,75.17316878]
[1770217611409,76.79566516,92.787,92.702,75.17316878]
[1770217611607,76.79566516,92.787,92.676,266.31316878]
[1770217612012,86.51036516,92.787,92.677,75.17316878]
[1770217612308,76.79566516,92.787,92.677,75.17316878]
[1770217612512,76.79566516,92.787,92.692,75.17316878]
[1770217612714,76.79566516,92.787,92.63,6.0]
[1770217612715,76.79566516,92.787,92.666,75.17316878]
[1770217612911,76.79566516,92.787,92.634,75.17316878]
[1770217613214,76.79566516,92.746,92.652,9.7287]
[1770217613409,76.79566516,92.746,92.634,75.17316878]
[1770217613604,86.51456516,92.746,92.647,9.7292]
[1770217613806,76.79566516,92.746,92.634,75.17316878]
[1770217614109,76.79566516,92.746,92.636,77.19388542]
[1770217614308,75.73599376,92.776,92.636,77.19388542]
[1770217614607,75.73599376,92.776,92.63,32.94774279]
[1770217614608,75.73599376,92.776,92.638,77.19388542]
[1770217615507,9.7183,92.752,92.657,77.19388542]
[1770217615808,75.73599376,92.776,92.657,77.19388542]
[1770217616009,75.73599376,92.776,92.659,77.19388542]
[1770217616312,75.73599376,92.802,92.671,77.19388542]
[1770217616515,75.73599376,92.768,92.671,77.19388542]
[1770217617112,9.7171,92.764,92.673,77.19388542]
[1770217617312,75.73599376,92.768,92.673,77.19388542]
[1770217617608,75.73599376,92.768,92.676,77.19388542]
[1770217617810,75.4335213,92.821,92.676,77.19388542]
[1770217618210,75.4335213,92.782,92.676,77.19388542]
[1770217619610,9.7189,92.747,92.676,77.19388542]
[1770217620204,9.7189,92.747,92.569,151.4725]
[1770217620205,75.4335213,92.757,92.624,80.03780189]
[1770217620410,75.4335213,92.749,92.624,80.03780189]
[1770217620619,9.7199,92.737,92.624,80.03780189]
[1770217620813,75.4335213,92.749,92.641,80.03780189]
[1770217621213,75.4335213,92.735,92.641,80.03780189]
[1770217621414,75.4335213,92.761,92.641,80.03780189]
[1770217621716,75.4335213,92.799,92.674,80.03780189]
[1770217621910,75.4335213,92.799,92.676,80.03780189]
[1770217622314,75.4335213,92.769,92.676,80.03780189]
[1770217622619,75.4335213,92.823,92.701,80.03780189]
[1770217622919,75.4335213,92.823,92.7,22.07484564]
[1770217622920,75.4335213,92.859,92.733,80.03780189]
[1770217623513,75.4335213,92.859,92.746,80.03780189]
[1770217623911,75.4335213,92.884,92.761,80.03780189]
[1770217624215,75.4335213,92.884,92.77,22.07484564]
[1770217624412,75.4335213,92.914,92.789,9.7144]
[1770217624608,75.4335213,92.94,92.801,80.03780189]
[1770217625115,75.4335213,92.928,92.801,80.03780189]
[1770217625515,75.4335213,92.891,92.774,80.03780189]
[1770217625814,75.4335213,92.889,92.747,80.03780189]
[1770217626019,75.4335213,92.889,92.666,151.3134]
[1770217626020,75.4335213,92.889,92.771,80.03780189]
[1770217626714,75.4335213,92.889,92.773,80.03780189]
[1770217627113,75.4335213,92.915,92.801,80.03780189]
[1770217627310,75.4335213,92.915,92.8,22.07484564]
[1770217627311,414.28529154,92.941,92.831,80.03780189]
[1770217627518,414.28529154,92.941,92.861,80.03780189]
[1770217628017,75.4335213,92.973,92.861,80.03780189]
[1770217628425,75.4335213,93.004,92.891,80.03780189]
[1770217629514,75.4335213,93.004,92.86,22.07484564]
[1770217629719,75.4335213,92.992,92.858,80.03780189]
[1770217629914,75.4335213,92.958,92.83,80.03780189]
[1770217630113,75.4335213,92.958,92.831,80.03780189]
[1770217630518,75.4335213,92.958,92.861,80.03780189]
[1770217630718,75.4335213,93.009,92.861,80.03780189]
[1770217631114,75.4335213,92.977,92.861,80.03780189]
[1770217631623,22.07484564,93.01,92.861,80.03780189]
[1770217631624,75.4335213,92.97,92.861,80.03780189]
[1770217632020,75.4335213,93.037,92.863,80.03780189]
[1770217632223,150.6343,93.085,92.862,53.79]
[1770217632224,75.4335213,93.027,92.892,80.03780189]
[1770217632617,75.4335213,93.019,92.863,80.03780189]
[1770217632920,75.4335213,92.983,92.863,80.03780189]
[1770217633321,75.4335213,92.983,92.879,80.03780189]
[1770217633925,75.4335213,93.01,92.891,80.03780189]
[1770217634229,150.6373,93.083,92.89,22.07484564]
[1770217634230,75.4335213,93.037,92.893,80.03780189]
[1770217634416,75.4335213,93.037,92.93,80.03780189]
[1770217635825,75.4335213,93.084,92.932,80.03780189]
[1770217636034,9.6849,93.073,92.954,80.03780189]
[1770217636228,85.1184213,93.073,92.954,80.03780189]
[1770217636428,75.4335213,93.073,92.966,9.6959]
[1770217636735,75.4335213,93.073,92.967,80.03780189]
[1770217636922,1.87092248,93.098,92.981,80.03780189]
[1770217637127,150.5015,93.167,92.998,80.03780189]
[1770217637128,75.4335213,93.131,92.998,80.03780189]
[1770217637329,75.4335213,93.128,92.998,80.03780189]
[1770217637520,150.5638,93.129,92.969,80.03780189]
[1770217637521,75.4335213,93.083,92.969,80.03780189]
[1770217638124,75.4335213,93.07,92.969,80.03780189]
[1770217638325,75.4335213,93.07,92.938,80.03780189]
[1770217638631,75.4335213,93.07,92.94,80.03780189]
[1770217638826,75.4335213,93.07,92.951,80.03780189]
[1770217639225,85.1217213,93.04,92.951,80.03780189]
[1770217639425,85.1217213,93.04,92.868,150.9845]
[1770217639426,75.4335213,93.04,92.924,80.03780189]
[1770217639627,75.4335213,93.04,92.931,9.6996]
[1770217639826,75.4335213,93.04,92.924,80.03780189]
[1770217640230,9.6897,93.026,92.924,80.03780189]
[1770217640431,75.4335213,93.025,92.924,80.03780189]
[1770217640932,75.4335213,93.025,92.89,22.07484564]
[1770217640933,75.4335213,93.025,92.925,80.03780189]
[1770217641334,9.6928,92.997,92.896,80.03780189]
[1770217641628,85.1263213,92.997,92.896,80.03780189]
[1770217641823,75.4335213,92.997,92.896,80.03780189]
[1770217642333,75.4335213,93.028,92.896,80.03780189]
[1770217642534,75.4335213,93.026,92.914,80.03780189]
[1770217643232,75.4335213,93.026,92.917,80.03780189]
[1770217643539,225.6,93.066,92.883,150.9601]
[1770217643540,75.4335213,93.05,92.936,80.03780189]
[1770217644333,73.32267283,93.117,92.949,72.4834851]
[1770217644532,73.32267283,93.098,92.949,72.4834851]
[1770217644829,73.32267283,93.051,92.949,72.4834851]
[1770217645236,73.32267283,93.051,92.951,72.4834851]
[1770217646133,73.32267283,93.051,92.924,72.4834851]
[1770217647135,9.6874,93.049,92.952,72.4834851]
[1770217648243,9.6885,93.038,92.952,72.4834851]
[1770217648435,73.32267283,93.038,92.952,72.4834851]
[1770217648628,73.32267283,93.038,92.926,72.4834851]
[1770217648830,9.6909,93.015,92.926,72.4834851]
[1770217649641,73.32267283,93.026,92.926,72.4834851]
[1770217650533,73.32267283,93.026,92.927,9.7]
[1770217650939,9.69,93.024,92.927,82.1834851]
[1770217651135,73.32267283,93.024,92.927,72.4834851]
[1770217651732,225.58,93.064,92.944,72.4834851]
[1770217651733,73.32267283,93.052,92.944,72.4834851]
[1770217652540,73.32267283,93.052,92.961,72.4834851]
[1770217653041,9.6871,93.051,92.966,9.6958]
[1770217653237,73.32267283,93.052,92.961,72.4834851]
[1770217653535,32.43,93.106,92.96,8.81866431]
[1770217653536,32.43,93.106,93.001,72.4834851]
[1770217653743,73.32267283,93.11,92.96,8.81866431]
[1770217653744,73.32267283,93.11,93.02,81.30214941]
[1770217654036,73.32267283,93.159,93.04,8.81866431]
[1770217654235,73.32267283,93.133,93.02,81.30214941]
[1770217654630,150.4274,93.213,93.011,193.18]
[1770217654631,73.32267283,93.159,93.07,8.81866431]
[1770217654836,73.32267283,93.159,93.071,72.4834851]
[1770217655031,8.81866431,93.21,93.071,72.4834851]
[1770217655032,73.32267283,93.185,93.071,72.4834851]
[1770217655232,150.4079,93.225,93.03,6.0]
[1770217655233,73.32267283,93.146,93.03,81.30214941]
[1770217655631,73.32267283,93.146,93.034,72.4834851]
[1770217656035,73.32267283,93.146,93.07,8.81866431]
[1770217656437,73.32267283,93.189,93.07,72.4834851]
[1770217656637,73.32267283,93.189,93.072,72.4834851]
[1770217656838,73.32267283,93.255,93.091,72.4834851]
[1770217657039,73.32267283,93.287,93.151,72.4834851]
[1770217657239,9.6632,93.282,93.173,72.4834851]
[1770217657439,73.32267283,93.287,93.181,72.4834851]
[1770217657840,9.6675,93.24,93.15,94.36230538]
[1770217658039,9.6675,93.24,93.15,72.4834851]
[1770217658341,73.32267283,93.239,93.123,72.4834851]
[1770217658544,73.32267283,93.225,93.085,72.4834851]